[Event "American Cup Elimination 2023"]
[Site "Saint Louis"]
[Date "2023.03.21"]
[Round "2.4"]
[White "Caruana, Fabiano"]
[Black "Aronian, Levon"]
[Result "1-0"]
[ECO "C65"]
[WhiteElo "2766"]
[BlackElo "2745"]
[Annotator "TA"]
[PlyCount "185"]
[EventDate "2023.03.15"]
[EventType "k.o."]
[EventCountry "USA"]
[SourceTitle "playchess.com"]
[Source "ChessBase"]
[SourceQuality "1"]
[TimeControl "600+5"]

{[%evp 26,185,-4,-1,-10,-8,-8,-9,0,-8,2,2,24,16,33,33,40,0,0,0,40,33,33,33,33,0,33,0,33,33,18,18,18,18,18,11,11,-16,11,4,4,0,0,0,0,0,0,0,0,0,0,0,13,12,28,10,22,0,0,0,0,0,10,0,0,0,0,-18,-34,-38,83,89,81,-17,0,0,78,0,93,84,890,899,29990,65,74,81,81,77,39,22,17,0,0,0,0,0,0,0,0,0,0,0,33,0,502,495,477,440,450,43,47,39,39,39,917,917,908,908,899,899,872,881,816,810,735,720,5185,5185,5157,1016,1884,927,1112,920,920,153,160,156,154,107,106,0,878,869,526,59,66,54,29985,29986,29986,29987,29987,914,851,879,862,878,862,751,5057,4132]} 1. e4 {[%emt 0:00:01]} e5 {[%emt 0:00:03]} 2. Nf3 {[%emt 0:00:01]} Nc6 {[%emt 0:00:02]} 3. Bb5 {[%emt 0:00:02]} Nf6 {[%emt 0:00:01]} 4. d3 {[%emt 0:00:01]} Bc5 {[%emt 0:00:02]} 5. Bxc6 {[%emt 0:00:01]} dxc6 {[%emt 0:00:02]} 6. Nbd2 {[%emt 0:00:01]} Be6 {[%emt 0:00:04]} 7. O-O {[%emt 0:00:03]} Bd6 {[%emt 0:00:07]} 8. Nb3 {[%emt 0:00:01]} b6 {[%emt 0:00:09]} 9. Bg5 {[%emt 0:00:02]} Qd7 {[%emt 0:00:08]} 10. Bh4 {[%emt 0:00:03]} c5 {[%emt 0:00:01]} 11. Nbd2 {[%emt 0:00:27]} Nh5 {[%emt 0:00:57]} 12. Ng5 {[%emt 0:00:03]} Nf4 {[%emt 0:00:25]} 13. Nxe6 {[%emt 0:00:26]} Nxe6 {[%emt 0:00:16]} 14. Nc4 {[%emt 0:00:03]} f6 {[%emt 0:00:02]} 15. f3 {[%emt 0:00:21]} a5 {[%emt 0:00:27]} 16. a4 {[%emt 0:00:05]} h5 {[%emt 0:00:14]} 17. Bf2 {[%emt 0:00:25]} h4 {[%emt 0:00:10]} 18. h3 {[%emt 0:00:21]} Be7 {[%emt 0:00:37]} 19. Qe1 {[%emt 0:00:12]} g5 {[%emt 0:00:12]} 20. Ne3 {[%emt 0:00:31]} O-O-O {[%emt 0:00:21]} 21. Nf5 {[%emt 0:00:29]} Nd4 {[%emt 0:00:14]} 22. Ne3 {[%emt 0:00:48]} Ne6 {[%emt 0:00:10]} 23. Kh2 {[%emt 0:00:10]} Kb7 {[%emt 0:00:03]} 24. Qc3 {[%emt 0:00:04]} Nd4 {[%emt 0:00:17]} 25. Nc4 {[%emt 0:00:11]} Rhf8 {[%emt 0:00:25]} 26. Rfe1 {[%emt 0:00:15]} Qc6 {[%emt 0:00:14]} 27. Qd2 {[%emt 0:00:11]} Qd7 {[%emt 0:00:07]} 28. Be3 {[%emt 0:00:02]} Qe6 {[%emt 0:00:11]} 29. Qf2 {[%emt 0:00:03]} Qc6 {[%emt 0:00:06]} 30. Reb1 {[%emt 0:00:11]} Kc8 {[%emt 0:00:04]} 31. Rd1 {[%emt 0:00:21]} Qe6 {[%emt 0:00:09]} 32. Kh1 {[%emt 0:00:12]} Rd7 {[%emt 0:00:03]} 33. c3 {[%emt 0:00:52]} Nc6 {[%emt 0:00:03]} 34. Qc2 {[%emt 0:00:01]} Rfd8 {[%emt 0:00:35]} 35. Rd2 {[%emt 0:00:06]} Kb8 {[%emt 0:00:18]} 36. Rad1 {[%emt 0:00:02]} Bf8 {[%emt 0:00:43]} 37. Qb3 {[%emt 0:00:05]} Qe8 {[%emt 0:01:04]} 38. Qb5 {[%emt 0:00:59]} Qe6 {[%emt 0:00:12]} 39. Qa6 {[%emt 0:00:30]} Rf7 {[%emt 0:00:19]} 40. Bf2 {[%emt 0:00:29]} Rfd7 {[%emt 0:00:31]} 41. Na3 {[%emt 0:00:42]} Na7 {[%emt 0:00:52]} 42. Ra1 {[%emt 0:01:00]} Qc6 {[%emt 0:00:36]} 43. Qc4 {[%emt 0:00:02]} Rd6 {[%emt 0:00:25]} 44. Nb5 {[%emt 0:00:01]} Nxb5 {[%emt 0:00:16]} 45. axb5 {[%emt 0:00:01]} Qd7 {[%emt 0:00:48]} 46. d4 {[%emt 0:01:11]} exd4 {[%emt 0:00:01]} 47. cxd4 {[%emt 0:00:01]} cxd4 {[%emt 0:00:01]} (47... Qe8 $15 {stays ahead.}) 48. b4 $16 {[%emt 0:00:01]} Qe6 {[%emt 0:00:01]} (48... c6 $2 49. bxa5 cxb5 50. Qb3 $18) 49. Qc1 {[%emt 0:00:02]} (49. Qd3 $1 $16) 49... R6d7 {[%emt 0:00:12]} (49... axb4 50. Rda2 Kc8 51. e5 (51. Ra7 Kd7 $16) 51... fxe5 52. Ra7 $18 (52. Ra8+ Kd7 $11)) 50. bxa5 {[%emt 0:00:12]} Bb4 {[%emt 0:00:17]} (50... bxa5 $11 51. Qc6 Qxc6 52. bxc6 Rd6) 51. Rda2 {[%emt 0:01:41]} (51. axb6 $1 $16 Bxd2 52. bxc7+ Rxc7 53. Qxd2) 51... Bxa5 {[%emt 0:00:29]} (51... bxa5 $11 {keeps the balance.} 52. Ra4 Bc3) 52. Be1 $1 $16 {[%emt 0:00:01]} d3 $2 {[%emt 0:00:09][%mdl 8192]} (52... Bxe1 $2 53. Ra8+ Kb7 54. R1a7#) (52... Kb7 $16) 53. Bxa5 $18 {[%emt 0:00:01]} bxa5 {[%emt 0:00:01]} 54. Qd2 $2 {[%emt 0:00:18]} (54. Rxa5 {mates} c6 55. bxc6 Rc8 56. Ra8+ Kc7 57. Rxc8+ {[%mdl 64] Remove Defender} Kxc8 58. cxd7+ Kxd7 59. Ra7+ Ke8 60. Qc7 Kf8 61. Qg7+ Ke8 62. Qh8+ Qg8 63. Qxg8#) 54... Kb7 $1 $14 {[%emt 0:00:11]} 55. Rxa5 {[%emt 0:00:03]} Rb8 {[%emt 0:00:04]} 56. Ra6 {[%emt 0:00:05]} Qe5 {[%emt 0:00:03]} 57. b6 {[%emt 0:00:09]} cxb6 {[%emt 0:00:07]} 58. Ra7+ {[%emt 0:00:04]} Kc8 {[%emt 0:00:02]} 59. Rc1+ {[%emt 0:00:00]} Kd8 60. Rxd7+ Kxd7 {[%emt 0:00:01]} 61. Qxd3+ {[%emt 0:00:04]} Ke7 {[%emt 0:00:08]} 62. Qa3+ {[%emt 0:00:04]} (62. Rd1 Kf8 $14) 62... Ke8 {[%emt 0:00:09]} 63. Qa7 {[%emt 0:00:17]} Rd8 {[%emt 0:00:01]} 64. Qg7 {[%emt 0:00:04]} Qf4 $2 {[%emt 0:00:10][%mdl 8192]} (64... b5 $11 {and Black stays safe.}) 65. Ra1 $1 $18 {[%emt 0:00:07]} Qd6 {[%emt 0:00:09]} 66. e5 $1 {[%emt 0:00:06]} Qf8 {[%emt 0:00:06]} 67. Qc7 $2 {[%emt 0:00:06]} ({Inferior is} 67. Qxf6 Qxf6 68. exf6 b5 $11) (67. exf6 Qxg7 68. fxg7 Kf7 $11) (67. Qh7 $18 {White wants to mate with Ra7.} fxe5 68. Qg6+ Qf7 69. Qxg5) 67... Qe7 $1 $14 {[%emt 0:00:06]} 68. Qc6+ {[%emt 0:00:01]} (68. Qc4 {simplifies} Kf8 69. f4 gxf4 70. e6) 68... Kf7 $1 {[%emt 0:00:02]} 69. exf6 {[%emt 0:00:02]} Qe6 $2 {[%emt 0:00:03][%mdl 8192]} (69... Qd6 $14 70. Qc3 Kg6) 70. Ra7+ $18 {[%emt 0:00:07]} Kxf6 {[%emt 0:00:01]} 71. Qc3+ {[%emt 0:00:00]} Kf5 {[%emt 0:00:09]} 72. Qc2+ {[%emt 0:00:11]} Kf6 {[%emt 0:00:02]} 73. Qb2+ {[%emt 0:00:06]} Kf5 {[%emt 0:00:04]} 74. Qb1+ $1 {[%emt 0:00:01]} Kf6 {[%emt 0:00:11]} 75. Rh7 {[%emt 0:00:01]} Ke5 {[%emt 0:00:08]} 76. Rg7 {[%emt 0:00:07]} Qf6 {[%emt 0:00:03]} 77. Qe1+ {[%emt 0:00:10]} (77. Qe4+ $142 Kd6 78. Rg6 Qxg6 79. Qxg6+ Kc5 80. Qxg5+ Rd5 81. Qxh4) 77... Kd5 {[%emt 0:00:06]} 78. Re7 {[%emt 0:00:01]} (78. Qe4+ $142 Kd6 79. Rg6) 78... Rd6 {[%emt 0:00:02]} 79. Qe4+ {[%emt 0:00:06]} Kc5 {[%emt 0:00:01]} 80. Rc7+ $2 {[%emt 0:00:01]} (80. Re5+ $18 Qxe5 81. Qxe5+ Rd5 82. Qe3+ Kb5 83. f4 gxf4 84. Qxf4) 80... Rc6 $16 {[%emt 0:00:03]} 81. Qc2+ {[%emt 0:00:03]} Kb5 {[%emt 0:00:05]} 82. Qe2+ {[%emt 0:00:09]} ({White should play} 82. Qb1+ Kc5 83. Qc2+ Kb5 84. Qd3+ Kc5 85. Qc2+) 82... Kb4 {[%emt 0:00:07]} 83. Qe4+ {[%emt 0:00:07]} (83. Qe1+ $1 $16 Qc3 84. Qb1+ (84. Rxc6 $2 {perishes.} Qxe1+ 85. Kh2 b5 $19) 84... Kc5 85. Rd7) 83... Kb5 $2 {[%emt 0:00:02][%mdl 8192]} (83... Kc5 $11 84. Qc2+ Kb5 85. Qd3+ Kc5 86. Qa3+ Kb5 87. Qb3+ Kc5) 84. Qd5+ $1 $18 {[%emt 0:00:03]} Rc5 {[%emt 0:00:00] [#]} 85. Qb3+ $2 {[%emt 0:00:02]} ({White must play} 85. Qd3+ $1 $18 Ka4 86. Qd1+ Kb5 87. Qf1+ Kb4 88. Qb1+ Kc4 89. Rd7) 85... Ka6 $14 {[%emt 0:00:04]} 86. Qd3+ {[%emt 0:00:06]} Ka5 $2 {[%emt 0:00:11][%mdl 8192] [#]} (86... Rb5 $14 87. Rc4 (87. Qe4 Qa1+ 88. Kh2 Qe5+ 89. Qxe5 Rxe5 $15) 87... Qf5) 87. Ra7+ $1 {[%emt 0:00:03]} Kb4 {[%emt 0:00:01]} 88. Qa3+ {[%emt 0:00:06]} Kc4 {[%emt 0:00:02]} 89. Qa4+ {[%emt 0:00:03]} (89. Qa2+ $142 Kb4 90. Qa4+ Kc3 91. Qa1+ {[%mdl 64] Skewer} Kb3 92. Qxf6 b5 93. Qd6 Rc1+ 94. Kh2) 89... Kd5 $18 {[%emt 0:00:15]} 90. Qd1+ {[%emt 0:00:01]} Ke5 {[%emt 0:00:12]} 91. Rd7 {[%emt 0:00:13]} Qe6 {[%emt 0:00:05]} 92. Rd8 {[%emt 0:00:09]} Rd5 {[%emt 0:00:06]} 93. Qe2+ {[%emt 0:00:05]} 1-0

[Event "American Cup Elimination 2023"]
[Site "Saint Louis"]
[Date "2023.03.21"]
[Round "2.5"]
[White "Aronian, Levon"]
[Black "Caruana, Fabiano"]
[Result "0-1"]
[ECO "C77"]
[WhiteElo "2745"]
[BlackElo "2766"]
[Annotator "TA"]
[PlyCount "90"]
[EventDate "2023.03.15"]
[EventType "k.o."]
[EventCountry "USA"]
[SourceTitle "playchess.com"]
[Source "ChessBase"]
[SourceQuality "1"]
[TimeControl "600+5"]

{[%evp 13,90,22,18,13,20,11,12,12,31,27,42,-19,54,51,52,-31,-21,-20,0,0,0,-14,-16,-9,8,0,20,21,40,0,0,-75,-74,-78,-87,-81,-25,-27,-18,-55,-54,-239,-244,-357,-351,-316,-307,-416,-458,-487,-469,-427,-268,-379,-366,-398,-347,-331,-295,-302,-231,-221,-159,-207,-48,-152,-152,-256,-262,-239,-239,-884,-861,-835,-818,-780,-754,-746,-734]} 1. e4 {[%emt 0:07:07]} e5 {[%emt 0:07:06]} 2. Nf3 {[%emt 0:00:04]} Nc6 {[%emt 0:00:04]} 3. Bb5 {[%emt 0:00:04]} a6 {[%emt 0:00:04]} 4. Ba4 {[%emt 0:00:04]} Nf6 {[%emt 0:00:04]} 5. d3 {[%emt 0:00:04]} d6 {[%emt 0:00:04]} 6. c3 {[%emt 0:00:05]} g6 {[%emt 0:00:04]} 7. O-O {[%emt 0:00:05]} Bg7 {[%emt 0:00:04]} 8. Be3 {[%emt 0:00:04] C77: Ruy Lopez: 3...a6 4 Ba4 Nf6, unusual lines.} O-O {[%emt 0:00:05]} 9. Nbd2 {[%emt 0:00:04]} h6 {[%emt 0:00:04]} 10. h3 {[%emt 0:00:04] The position is equal.} Nd7 {[%emt 0:00:04] [#]} 11. d4 $146 {[%emt 0:00:13]} ({Predecessor:} 11. Nh2 Ne7 12. f4 exf4 13. Bxf4 Nc5 14. Bc2 Ne6 15. Be3 f5 16. d4 f4 17. Bf2 {1-0 Murzin,V (2502)-Nihal,S (2620) Gelfand Challenge rapid 2021 (19)}) 11... f5 {[%emt 0:00:04]} 12. dxe5 {[%emt 0:00:04]} (12. exf5 $14 gxf5 13. Bb3+ Kh7 14. dxe5 dxe5 15. Qe2) 12... dxe5 {[%emt 0:00:33]} (12... f4 $1 $11 13. e6 fxe3 14. exd7 exf2+ 15. Rxf2 Bxd7) 13. exf5 $14 {[%emt 0:00:31]} gxf5 {[%emt 0:00:04]} 14. Bxc6 {[%emt 0:00:05]} (14. g3 $14) 14... bxc6 $15 {[%emt 0:00:05]} 15. Nb3 {[%emt 0:00:07][%cal Bd2b3,Bb3c5,Bc5d3,Bd3b4][%mdl 32]} Qf6 {[%emt 0:00:04]} (15... Qe7 $5) 16. Re1 {[%emt 0:00:17]} Re8 {[%emt 0:00:08]} 17. Qc2 {[%emt 0:00:09]} Qf7 {[%emt 0:00:04]} 18. Rad1 {[%emt 0:00:26]} Nf8 {[%emt 0:00:04]} 19. Nc5 {[%emt 0:00:18]} a5 {[%emt 0:00:47]} 20. Qa4 {[%emt 0:00:21]} Ng6 {[%emt 0:00:40]} 21. Bc1 {[%emt 0:00:42]} Rb8 {[%emt 0:00:20]} 22. Nd2 {[%emt 0:00:33]} (22. Qxa5 e4 $16) (22. Qxc6 $11 {remains equal.} e4 23. Nd4) 22... Rb5 $17 {[%emt 0:00:18]} 23. Ndb3 {[%emt 0:00:14]} Bf8 {[%emt 0:00:04]} 24. Nd3 {[%emt 0:00:06]} Rd5 {[%emt 0:00:13]} (24... f4 $1 $17) 25. Nxa5 $11 {[%emt 0:00:10]} (25. Qxc6 $2 Red8 26. f4 R5d6 $19) 25... f4 {[%emt 0:00:15][%cal Bf5f4,Bf4f3][%mdl 32]} 26. Nb4 {[%emt 0:00:06]} Rxd1 {[%emt 0:00:20]} 27. Qxd1 {[%emt 0:00:07]} ({White must play} 27. Rxd1 $15 c5 28. Nbc6) 27... Nh4 $1 $19 {[%emt 0:00:04]} 28. Kh2 {[%emt 0:00:07]} (28. Naxc6 Qg7 29. Qd5+ Be6 $19) (28. Kh1 {was worth a try.} c5 29. Nc2 (29. Nbc6 e4 $17)) 28... e4 {[%emt 0:00:11][%cal Oh4g2] Threatens to win with ...Nxg2!} 29. Naxc6 {[%emt 0:00:05]} ({Much weaker is} 29. Nbxc6 e3 30. Rg1 (30. fxe3 $2 {loses.} f3 $19) 30... e2 $19) 29... Bd6 {[%emt 0:00:05]} 30. Kh1 {[%emt 0:00:04]} f3 {[%emt 0:00:16]} 31. g4 {[%emt 0:00:06] Strongly threatening Nd5.} (31. Bxh6 fxg2+ 32. Kg1 Nf3+ 33. Kxg2 Bxh3+ 34. Kh1 Nxe1) 31... Ng2 {[%emt 0:00:07]} 32. Rg1 {[%emt 0:00:05]} h5 {[%emt 0:00:06]} 33. Qd5 {[%emt 0:00:04]} (33. Rxg2 $142 fxg2+ {[%mdl 64] Discovered Attack} 34. Kxg2 Qf3+ 35. Qxf3 exf3+ 36. Kxf3) 33... hxg4 {[%emt 0:00:07] White must now prevent ...e3.} 34. hxg4 {[%emt 0:00:04]} Qxd5 {[%emt 0:00:05]} 35. Nxd5 {[%emt 0:00:04] Nf6+ would be deadly.} Kf7 {[%emt 0:00:07] Repels Nf6. ( -> ...Rh8+)} 36. Rxg2 {[%emt 0:00:04][%cal Og2h2] Hoping for Rh2!} fxg2+ {[%emt 0:00:04]} 37. Kxg2 {[%emt 0:00:03]} Bxg4 {[%emt 0:00:05]} 38. Nd4 {[%emt 0:00:05] Dodges Bf3+} (38. Ne3 $17 Bf3+ 39. Kf1) 38... Rh8 $2 {[%emt 0:00:05]} ({Black should try} 38... c5 $19 39. Ne3 cxd4 40. Nxg4 Rg8) 39. Ne3 {[%emt 0:00:05]} (39. Bf4 $15) 39... Rh2+ $1 $17 {[%emt 0:00:05]} 40. Kg1 {[%emt 0:00:04] [#]} (40. Kf1 $17 {was forced.}) 40... Bf3 $1 $19 {[%emt 0:00:05]} 41. Nxf3 {[%emt 0:00:04]} exf3 {[%emt 0:00:04]} 42. Nf5 $2 {[%emt 0:00:04]} (42. c4) 42... Rg2+ {[%emt 0:00:05] Black is clearly winning.} 43. Kf1 {[%emt 0:00:05] [#]} Bh2 $1 {[%emt 0:00:05][%csl Gh2][%cal Rg2g1]} 44. Ke1 {[%emt 0:00:03]} Rg1+ {[%emt 0:00:04]} 45. Kd2 {[%emt 0:00:04]} Bf4+ {[%emt 0:00:04] Weighted Error Value: White=0.51/Black=0.20 (precise)} 0-1

[Event "American Cup Elimination 2023"]
[Site "Saint Louis"]
[Date "2023.03.21"]
[Round "2.6"]
[White "Caruana, Fabiano"]
[Black "Aronian, Levon"]
[Result "0-1"]
[ECO "B08"]
[WhiteElo "2766"]
[BlackElo "2745"]
[Annotator "TA"]
[PlyCount "152"]
[EventDate "2023.03.15"]
[EventType "k.o."]
[EventCountry "USA"]
[SourceTitle "playchess.com"]
[Source "ChessBase"]
[SourceQuality "1"]
[TimeControl "600+5"]

{[%evp 14,152,20,17,33,21,33,39,49,36,54,23,7,16,15,0,0,0,0,2,6,0,0,0,66,54,137,141,129,136,159,159,204,176,294,296,291,281,271,53,43,38,64,0,0,-182,-166,-175,-180,-178,-124,-120,168,-449,-438,-443,525,-403,98,-493,-495,-486,-445,-1033,-236,-520,-513,-589,-502,-507,-503,-636,-617,-633,-605,-561,-482,-557,-470,-623,-614,-645,-640,-637,-666,-729,-720,-708,-666,-1219,-1474,-1495,-1375,-5701,-4818,-6006,-1843,-1834,-1745,-1895,-1681,-1430,-1179,-1974,-1989,-1659,-1641,-12842,-12842,-12843,-12843,-29985,-12839,-29988,-29989,-29989,-12834,-12844,-12841,-12833,-12837,-12836,-12837,-1602,-1189,-12849,-12846,-12848,-12846,-12847,-12845,-12847,-12846,-12848,-12844,-12846,0,-12848,-12842,-12848,-12848]} 1. e4 {[%emt 0:07:07]} g6 {[%emt 0:07:07]} 2. d4 {[%emt 0:00:04]} Bg7 {[%emt 0:00:03]} 3. Nc3 {[%emt 0:00:04]} d6 {[%emt 0:00:04]} 4. Be3 {[%emt 0:00:04]} a6 {[%emt 0:00:04]} 5. a4 {[%emt 0:00:04]} Nc6 {[%emt 0:00:10]} 6. Nf3 {[%emt 0:00:05]} Nf6 {[%emt 0:00:07]} 7. h3 {[%emt 0:00:05]} O-O {[%emt 0:00:08]} 8. Be2 {[%emt 0:00:04]} e6 $1 {[%emt 0:00:12][%mdl 4] is recently more successful than 8...e5. B08: Pirc Defence: Classical System.} 9. O-O {[%emt 0:00:05]} Ne7 $5 {[%emt 0:00:04][%mdl 4] [#] An interesting side line.} 10. a5 $146 {[%emt 0:00:08]} ({Predecessor:} 10. Nd2 e5 11. dxe5 dxe5 12. Nc4 Nc6 13. Bc5 Re8 14. Ne3 b6 15. Ba3 Nd4 16. Bd3 {0-1 Ordonez Torres,J (1989)-Blanco Acevedo,C (2362) ESP-ch rapid 2018 (2)}) 10... b5 {[%emt 0:00:08] White is slightly better.} 11. axb6 {[%emt 0:00:06]} cxb6 {[%emt 0:00:04]} 12. e5 {[%emt 0:00:18]} dxe5 {[%emt 0:00:14]} 13. dxe5 {[%emt 0:00:04]} Nd7 {[%emt 0:00:14]} 14. Ne4 {[%emt 0:00:36]} Bb7 {[%emt 0:00:06]} 15. Nd6 {[%emt 0:00:14]} Bc6 {[%emt 0:00:57]} 16. Bf4 {[%emt 0:00:30]} (16. Bxa6 Bxf3 17. gxf3 (17. Qxf3 Nxe5 {[%mdl 64] Discovered Attack} 18. Qd1 Nd5 $17) 17... Nxe5 $17) 16... b5 {[%emt 0:00:41]} 17. Re1 {[%emt 0:00:09]} Qc7 {[%emt 0:00:18]} 18. Qd2 {[%emt 0:00:18]} Nb6 {[%emt 0:00:36]} (18... Bd5 $11) 19. Bh6 {[%emt 0:00:17]} (19. b3 {simplifies} Nf5 20. c4 bxc4 21. bxc4 Nd7 22. Nxf5 gxf5 23. Qe3) 19... Nbd5 {[%emt 0:00:07]} (19... Nd7 $14) 20. Bxg7 $16 {[%emt 0:00:07]} Kxg7 {[%emt 0:00:04]} 21. Nd4 {[%emt 0:00:07]} Qb6 {[%emt 0:00:16]} 22. h4 {[%emt 0:00:11][%cal Bh3h4,Bh4h5,Bh5h6][%mdl 32]} Nc8 {[%emt 0:00:05]} 23. Ne4 {[%emt 0:00:17]} Rd8 {[%emt 0:00:04]} (23... Nce7 {was worth a try.} 24. Bf3 Rad8) 24. h5 $18 {[%emt 0:00:08]} Nde7 {[%emt 0:00:06]} 25. h6+ $1 {[%emt 0:00:04]} Kf8 {[%emt 0:00:04] [#]} (25... Kh8 $2 26. Qg5 Nd5 27. Nxc6 $18) 26. Nxe6+ {[%emt 0:00:31]} fxe6 $14 {[%emt 0:00:04]} 27. Qf4+ {[%emt 0:00:04]} Nf5 {[%emt 0:00:06] White must now prevent ...Bxe4.} 28. Ng5 {[%emt 0:00:04]} (28. Nf6 $1 $14) 28... Kg8 $11 {[%emt 0:00:06]} 29. Rad1 {[%emt 0:00:09]} (29. g4 $1 $11 {and White has nothing to worry.} Rd4 30. Qh2) 29... Nce7 $1 $19 {[%emt 0:00:04]} (29... Nxh6 30. Nxe6 Re8 31. Nd4 $18 (31. Qf6 Ra7 $17)) 30. Nxe6 {[%emt 0:00:06]} Rxd1 {[%emt 0:00:05]} 31. Rxd1 {[%emt 0:00:04] [#]} Bxg2 $1 {[%emt 0:00:04][%mdl 512]} 32. Ng5 $17 {[%emt 0:00:17]} Bb7 $2 {[%emt 0:00:04][%mdl 8192] [#]} (32... Bd5 $1 $17 {stays on course. ...Rf8 would be deadly.} 33. Bf3 Rd8) 33. e6 $4 {[%emt 0:00:10][%mdl 8192]} (33. Bc4+ $1 $18 {was the only winning move.} Kh8 34. Nf7+ Kg8 35. Ng5+ Kh8 36. Nf7+ Kg8 37. Ng5+) 33... Rd8 $19 {[%emt 0:00:04]} (33... Nxh6 34. Qf6 Qc6 35. Bf3 $18) (33... Qc6 34. Bf3 Qxc2 35. Rc1 Qxb2 36. Bxb7 $15) 34. Rd7 {[%emt 0:00:06]} Bc6 $4 {[%emt 0:00:08][%mdl 8192]} (34... Rxd7 $19 {and all is fine.} 35. exd7 Qd8) 35. Rd3 {[%emt 0:00:09][%mdl 8192]} (35. Rxe7 $1 $18 {[%cal Oe7g7] Rg7+! would kill now.} Qd4 36. Qxd4 Rxd4 37. Rc7) 35... Qb8 $2 {[%emt 0:00:06] [#]} (35... Nxh6 $2 36. Nf7 Rxd3 37. Nxh6+ Kg7 38. Qf7+ (38. Bxd3 Be8 $11) 38... Kxh6 39. Qf8+ (39. cxd3 $2 {perishes.} Nf5 $19) 39... Kg5 40. Qxe7+ (40. cxd3 $2 {is the wrong capture.} Nf5 $19) 40... Kf5 41. cxd3 $16 (41. Bxd3+ Ke5 $18)) ({Black should play} 35... Rf8 $19 36. Bf3 Bxf3 37. Rxf3 Qa5) 36. Qd2 $2 {[%emt 0:00:06][%mdl 8192]} (36. Rxd8+ $1 $16 Qxd8 37. Nf7) 36... Rxd3 {[%emt 0:00:05]} 37. Bxd3 {[%emt 0:00:04]} Qf8 {[%emt 0:00:07]} 38. Qc3 {[%emt 0:00:04]} (38. Qf4 $142) 38... Be8 $2 {[%emt 0:00:04]} (38... Qxh6 {[%csl Gc6][%cal Rh6h1]} 39. Qh8+ {[%mdl 64] Decoy} Kxh8 40. Nf7+ Kg7 41. Nxh6 Nxh6) 39. Qe5 $2 {[%emt 0:00:07]} (39. Ne4 {was called for.} b4 40. Qe5) 39... Qxh6 {[%emt 0:00:05]} 40. Nf3 {[%emt 0:00:05]} Qg7 {[%emt 0:00:04]} 41. Qb8 {[%emt 0:00:04]} Qf8 {[%emt 0:00:04]} 42. Ne5 {[%emt 0:00:04]} Nc6 {[%emt 0:00:04]} 43. Nxc6 {[%emt 0:00:07]} Bxc6 {[%emt 0:00:04]} 44. Qc7 {[%emt 0:00:04]} Qd6 {[%emt 0:00:07]} 45. Qf7+ {[%emt 0:00:04]} Kh8 {[%emt 0:00:04]} 46. Qf6+ {[%emt 0:00:04]} Ng7 {[%emt 0:00:05]} 47. Kf1 {[%emt 0:00:08]} Be8 {[%emt 0:00:05]} 48. Be2 {[%emt 0:00:04]} Kg8 {[%emt 0:00:04]} 49. c4 {[%emt 0:00:04]} Qxe6 {[%emt 0:00:05]} 50. Qd4 {[%emt 0:00:04]} bxc4 {[%emt 0:00:05]} 51. Qd8 {[%emt 0:00:06]} h5 {[%emt 0:00:05]} 52. Bf3 {[%emt 0:00:03]} Kh7 {[%emt 0:00:04] Hoping for ...Bb5.} 53. Bd5 {[%emt 0:00:04]} Qf5 {[%emt 0:00:05] And now ...Qd3+ would win.} 54. Qd6 {[%emt 0:00:04]} Bb5 {[%emt 0:00:05]} 55. Kg1 {[%emt 0:00:06]} Qg5+ {[%emt 0:00:05]} 56. Kh1 {[%emt 0:00:06]} Qh4+ {[%emt 0:00:06]} 57. Kg1 {[%emt 0:00:04]} Qg4+ {[%emt 0:00:04]} 58. Kh1 {[%emt 0:00:05] [#]} c3 $1 {[%emt 0:00:03]} 59. bxc3 {[%emt 0:00:06]} Qh3+ {[%emt 0:00:04]} 60. Kg1 {[%emt 0:00:04]} Qf1+ {[%emt 0:00:04]} 61. Kh2 {[%emt 0:00:03]} Qxf2+ {[%emt 0:00:04]} 62. Kh1 {[%emt 0:00:04]} Qe1+ {[%emt 0:00:06]} (62... Nf5 $142 63. Qc7+ Kh6 64. Qe5 Ng3+ 65. Qxg3 Qxg3 66. Bg2 h4 67. Bd5 h3 68. c4 h2 69. Bg2 Bxc4 70. Be4 Qg1#) 63. Kg2 {[%emt 0:00:05]} Bf1+ {[%emt 0:00:06]} 64. Kh2 {[%emt 0:00:04]} Qxc3 {[%emt 0:00:04]} (64... Qf2+ $142 65. Kh1 Nf5 66. Qc7+ Kh6 67. Be4 Ng3+ 68. Qxg3 Qxg3 69. Bb7 h4 70. Be4 h3 71. Bd5 Bg2+ 72. Bxg2 Qxg2#) 65. Qd8 {[%emt 0:00:05]} Qe5+ {[%emt 0:00:06]} 66. Kg1 {[%emt 0:00:04]} Bd3 {[%emt 0:00:08]} 67. Bg8+ {[%emt 0:00:04]} Kh6 {[%emt 0:00:05] ( -> ...Qg3+)} 68. Qxd3 {[%emt 0:00:05][%mdl 4096] Endgame KQB-KQN} Nf5 {[%emt 0:00:05]} 69. Qxa6 {[%emt 0:00:06]} Qe3+ {[%emt 0:00:06]} 70. Kf1 {[%emt 0:00:03]} Qc1+ {[%emt 0:00:05]} 71. Kg2 {[%emt 0:00:06]} Qb2+ {[%emt 0:00:06]} 72. Kg1 {[%emt 0:00:06]} Qd4+ {[%emt 0:00:04]} 73. Kf1 {[%emt 0:00:05]} Qf4+ {[%emt 0:00:05]} 74. Kg1 {[%emt 0:00:05]} Qe3+ {[%emt 0:00:05]} 75. Kf1 $1 {[%emt 0:00:04]} h4 {[%emt 0:00:05][%cal Bh5h4,Bh4h3][%mdl 32]} 76. Qb7 {[%emt 0:00:06]} h3 {[%emt 0:00:06] An exciting game.   Weighted Error Value: White=0.74/Black=0.62} 0-1